Cogmind - Beta 11 @@@ ROGUE MODE // 2022.03.28 @ 18:17:12 Player: Dizzar Result: Self-destructed Performance ------------- Evolutions (3) 1500 Regions Visited (8) 1600 Robots Destroyed (23) 115 Value Destroyed (954) 954 Prototype IDs (23) 460 Alien Tech Used (0) 0 Bonus (300) 300 TOTAL SCORE: 4929 Bonus ------- Aligned with FarCom 300 Cogmind --------- Core Integrity 129/700 Matter 97/300 Energy 100/100 System Corruption 15% Temperature Cool (0) Movement Core (50) Location -7/Lower Caves Parts ------- > --- POWER (2) -------- (None) > --- PROPULSION (4) --- (None) > --- UTILITY (5) ------ (None) > --- WEAPON (2) ------- (None) > --- INVENTORY (5) ---- Small Storage Unit Compact Battery (200) Medium Matter Pod (0) Latent Energy Streamer Grenade Launcher Peak State ------------ > --- POWER ------------ Light Nuclear Core Light Nuclear Core > --- PROPULSION ------- Improved Treads Armored Treads Armored Huge Wheel > --- UTILITY ---------- Small Storage Unit Improved Light Armor Plating Improved Shield Generator Hacking Suite High-powered Tractor Beam > --- WEAPON ----------- Latent Energy Streamer Flak Gun > --- INVENTORY -------- Light Nuclear Core Compact Battery Medium Matter Pod Field Laser Grenade Launcher Mini Grenade Launcher Plasma Flamer [Rating: 47] Favorites ----------- Power Ion Engine Engine Ion Engine Power Core Light Nuclear Core Propulsion Aluminum Leg Treads Armored Treads Leg Aluminum Leg Wheel Armored Huge Wheel Utility Small Storage Unit Device Improved Shield Generator Storage Small Storage Unit Hackware Hacking Suite Protection Light Armor Plating Weapon Autogun Energy Gun Field Laser Energy Cannon Latent Energy Streamer Ballistic Gun Autogun Launcher Mini Grenade Launcher Special Weapon Plasma Flamer Build | -11 -10 -10 -10 -9 -8 -7 -7 -7 ------- Run | Scr Mat Min Exi Min Mat Fac Low Low Slots Evolved 6 | . . . . . 4 2 . . Power 1 | . . . . . 1 . . . Propulsion 2 | . . . . . 1 1 . . Utility 3 | . . . . . 2 1 . . Weapon . | . . . . . . . . . Parts Attached 38 | . 3 . 1 . 12 5 16 1 Power 4 | . . . . . 2 . 2 . Engine 1 | . . . . . 1 . . . Core 3 | . . . . . 1 . 2 . Reactor . | . . . . . . . . . Propulsion 7 | . . . . . 4 1 2 . Treads 2 | . . . . . . . 2 . Leg 4 | . . . . . 4 . . . Wheel 1 | . . . . . . 1 . . Hover . | . . . . . . . . . Flight . | . . . . . . . . . Utility 8 | . 2 . . . 1 3 1 1 Device 4 | . 1 . . . . 2 . 1 Storage 1 | . . . . . . . 1 . Processor . | . . . . . . . . . Hackware 1 | . . . . . 1 . . . Protection 2 | . 1 . . . . 1 . . Artifact . | . . . . . . . . . Weapon 19 | . 1 . 1 . 5 1 11 . Energy Gun 6 | . . . . . 3 . 3 . Energy Cannon 5 | . . . . . . . 5 . Ballistic Gun 3 | . 1 . . . . 1 1 . Ballistic Cannon . | . . . . . . . . . Launcher 3 | . . . 1 . 1 . 1 . Special Weapon 2 | . . . . . 1 . 1 . Impact Weapon . | . . . . . . . . . Slashing Weapon . | . . . . . . . . . Piercing Weapon . | . . . . . . . . . Special Melee Weapon . | . . . . . . . . . Unidentified Prototypes . | . . . . . . . . . Parts Lost 16 | . . . . . 3 . 13 . Power 5 | . . . . . 1 . 4 . Propulsion 3 | . . . . . 1 . 2 . Utility 5 | . . . . . 1 . 4 . Weapon 3 | . . . . . . . 3 . Highest Loss Streak 12 | . . . . . 3 . 12 . To Critical Strikes 1 | . . . . . . . 1 . Average Slot Usage (%) 78 | . 93 100 100 100 75 83 69 . Engine 9 | . 14 14 14 14 15 7 1 . Core 3 | . . . . . 1 7 8 . Treads 1 | . . . . . . . 7 . Leg 18 | . 28 28 28 28 24 17 3 . Wheel 2 | . . . . . . 4 5 . Device 5 | . 5 . . . . 9 10 . Storage 8 | . 14 14 14 14 9 7 5 . Hackware 3 | . . . . . . 7 5 . Protection 6 | . 2 14 14 14 6 3 5 . Energy Gun 7 | . 15 14 14 . 4 7 3 . Ballistic Gun 8 | . 12 14 14 14 9 7 5 . Launcher 1 | . . . . 14 3 . . . Naked Turns 199 | . . . . . . . 72 127 Heaviest Build 37 | 13 18 18 18 17 24 30 37 . Greatest Support 35 | 20 20 20 20 20 35 35 28 3 Greatest Overweight (x) 1 | . . . . . 1 1 1 . Average Overweight (x) . | . . . . . . . . . Largest Inventory Capacity 8 | . 8 8 8 8 8 8 8 5 Average Capacity 7 | . 8 8 8 8 8 8 7 5 Most Carried 8 | . 8 8 8 8 8 8 8 5 Average Carried 7 | . 7 8 7 8 7 8 6 5 Final Capacity 8 | 8 8 8 8 8 8 8 5 5 Final Carried 8 | 6 8 8 8 8 8 8 5 5 Class Distribution -------------------- 61% | Mutant 38% | Scavenger-Mutant Dominant Class ---------------- Mutant | -10/Materials Mutant | -10/Mines Mutant | -10/Exiles Mutant | -9/Mines Mutant | -8/Materials Scavenger-Mutant | -7/Factory Mutant | -7/Lower Caves Mutant | -7/Lower Caves Resources | -11 -10 -10 -10 -9 -8 -7 -7 -7 ----------- Run | Scr Mat Min Exi Min Mat Fac Low Low Matter Collected 772 | 200 . . . . 258 30 234 50 Remotely 226 | . . . . . . 30 196 . Salvage Created 841 | . . . . 93 204 30 514 . Parts 40 | . . . . 4 11 2 23 . Haulers Intercepted . | . . . . . . . . . Recyclers Shooed . | . . . . . . . . . Parts Field Recycled . | . . . . . . . . . Retrieved Matter . | . . . . . . . . . Parts Self-Destructed 19 | . . . . . . . 17 2 Prevented 6 | . . . . . . . 6 . Kills | -11 -10 -10 -10 -9 -8 -7 -7 -7 ------- Run | Scr Mat Min Exi Min Mat Fac Low Low Combat Hostiles Destroyed 22 | . . . . 3 4 . 15 . Guns 12 | . . . . 1 4 . 7 . Cannons 2 | . . . . . . . 2 . AOE 8 | . . . . 2 . . 6 . Classes Destroyed 5 | . . . . 1 1 1 2 . Watcher 1 | . . . . . . 1 . . Swarmer 6 | . . . . . . . 6 . Grunt 12 | . . . . 3 3 . 6 . Duelist 1 | . . . . . . . 1 . Sentry 3 | . . . . . 1 . 2 . Best Kill Streak 10 | . . . . 3 3 1 10 . Combat Bots Only 10 | . . . . 3 3 . 10 . Max Kills in Single Turn 2 | . . . . 1 1 1 2 . Gunslinging . | . . . . . . . . . Exploded 2 | . . . . 1 . . 2 . Melee . | . . . . . . . . . Uniques/NPCs Destroyed . | . . . . . . . . . Combat | -11 -10 -10 -10 -9 -8 -7 -7 -7 -------- Run | Scr Mat Min Exi Min Mat Fac Low Low Damage Taken 2519 | . 15 . . 124 439 30 1779 132 Core 634 | . . . . 45 18 . 439 132 Absorbed by Shields 139 | . . . . . . 12 127 . Core Remaining (%) 92 | 100 . . . 82 96 . . . Volleys Fired 59 | . 1 . . 3 22 8 25 . Largest 2 | . 2 . . 2 2 2 2 . Hottest 130 | . 63 . . 53 100 91 130 . Shots Fired 105 | . 2 . . 6 35 13 49 . Gun 83 | . 2 . . 3 31 13 34 . Cannon 5 | . . . . . . . 5 . Launcher 10 | . . . . 3 3 . 4 . Special 7 | . . . . . 1 . 6 . Kinetic 51 | . 1 . . 3 19 8 20 . Thermal 38 | . . . . . 13 5 20 . Explosive 10 | . . . . 3 3 . 4 . Electromagnetic 6 | . 1 . . . . . 5 . Robot Hit Streak 16 | . 1 . . 5 16 4 8 . Robot Miss Streak 6 | . 1 . . . 1 6 6 . Penetration Max . | . . . . . . . . . Secondary Targets 1 | . . . . . . . 1 . Max Gunslinging Chain 1 | . . . . . . . 1 . Shots Hit Robots 74 | . 1 . . 5 26 8 34 . Core Hits 78 | . . . . 5 9 7 57 . Critical Kills . | . . . . . . . . . Critical Parts Destroyed . | . . . . . . . . . Critical Strikes 3 | . . . . . 2 . 1 . Burn 3 | . . . . . 2 . 1 . Melee Attacks . | . . . . . . . . . Impact . | . . . . . . . . . Slashing . | . . . . . . . . . Piercing . | . . . . . . . . . Sneak Attacks . | . . . . . . . . . Combat Hostiles . | . . . . . . . . . Follow-up Attacks . | . . . . . . . . . Damage Inflicted 2100 | . 12 . . 287 408 107 1286 . Guns 988 | . 12 . . 30 396 107 443 . Cannons 15 | . . . . . . . 15 . Explosions 1021 | . . . . 257 . . 764 . Melee . | . . . . . . . . . Ramming . | . . . . . . . . . Kinetic 649 | . . . . 30 204 90 325 . Thermal 403 | . . . . . 204 17 182 . Explosive 621 | . . . . 257 . . 364 . Electromagnetic 427 | . 12 . . . . . 415 . Impact . | . . . . . . . . . Slashing . | . . . . . . . . . Piercing . | . . . . . . . . . Highest Corruption 15 | . 1 1 1 1 . . 15 15 Average Corruption 4 | . 1 1 1 1 . . 5 15 Corruption Purged . | . . . . . . . . . Corruption Blocked . | . . . . . . . . . Effects 22 | . 3 . 6 1 . . 7 5 Message Errors 3 | . . . 2 . . . . 1 Matter Fused 7 | . 1 . 2 . . . 2 2 Heat Flow Errors 3 | . 2 . . 1 . . . . Energy Discharges 4 | . . . 1 . . . 2 1 Data Loss (minor) 2 | . . . . . . . 2 . Data Loss (major) 2 | . . . 1 . . . . 1 Misfires 1 | . . . . . . . 1 . Overload Shots . | . . . . . . . . . Overflow Damage 14 | . . . . . . . 14 . Projectiles . | . . . . . . . . . Explosions 14 | . . . . . . . 14 . Melee . | . . . . . . . . . Knockbacks . | . . . . . . . . . Impact . | . . . . . . . . . Kinetic . | . . . . . . . . . Secondary . | . . . . . . . . . Self-Inflicted Damage 269 | . . . . 74 29 . 166 . Shots 10 | . . . . 3 1 . 6 . Rammed . | . . . . . . . . . Targets Rammed . | . . . . . . . . . Kicked . | . . . . . . . . . Crushed . | . . . . . . . . . Highest Temperature 617 | . 204 . . 129 334 40 617 . Average Temperature 184 | . 77 . . 46 200 19 249 . Received Heat Transfer 783 | . 9 . . 30 207 . 525 12 Effects 20 | . . . . . 3 . 17 . Shutdowns 1 | . . . . . . . 1 . Energy Bleed 3 | . . . . . . . 3 . Interference 3 | . . . . . 3 . . . Matter Decay 5 | . . . . . . . 5 . Short Circuit 2 | . . . . . . . 2 . Damage (minor) 2 | . . . . . . . 2 . Damage (major) 2 | . . . . . . . 2 . Damage (core) 2 | . . . . . . . 2 . Siege Activations . | . . . . . . . . . Robots Corrupted . | . . . . . . . . . Combat Hostiles . | . . . . . . . . . Parts Fried 1 | . . . . . . . 1 . Impact Corruptions . | . . . . . . . . . Robots Melted . | . . . . . . . . . Combat Hostiles . | . . . . . . . . . Parts Melted 2 | . . . . . 2 . . . Heat Transferred 1491 | . . . . . 635 37 819 . Parts Sabotaged . | . . . . . . . . . Parts Stolen . | . . . . . . . . . Parts Stripped . | . . . . . . . . . Power Chain Reactions . | . . . . . . . . . Missiles Intercepted . | . . . . . . . . . Latent Energy Used 414 | . . . . . . . 414 . LE Corruption 9 | . . . . . . . 9 . Alert | -11 -10 -10 -10 -9 -8 -7 -7 -7 ------- Run | Scr Mat Min Exi Min Mat Fac Low Low Peak Influence 176 | . 36 13 . 133 176 79 . . Initial 79 | . . 13 . . 51 79 . . Average 62 | . 10 13 . 130 99 48 . . Maximum Alert Level . | . . . . . . . . . Low Security (%) 100 | . 100 100 . 100 100 100 . . Level 1 . | . . . . . . . . . Level 2 . | . . . . . . . . . Level 3 . | . . . . . . . . . Level 4 . | . . . . . . . . . Level 5 . | . . . . . . . . . High Security . | . . . . . . . . . Max Security . | . . . . . . . . . Squads Dispatched 1 | . 1 . . . . . . . Investigation 1 | . 1 . . . . . . . Extermination . | . . . . . . . . . Reinforcement . | . . . . . . . . . Assault . | . . . . . . . . . Garrison . | . . . . . . . . . Intercept . | . . . . . . . . . Searches Triggered . | . . . . . . . . . Construction Impeded . | . . . . . . . . . Haulers Reinforced . | . . . . . . . . . Active Scanning Responses . | . . . . . . . . . Cargo Convoy Interrupts . | . . . . . . . . . Stealth | -11 -10 -10 -10 -9 -8 -7 -7 -7 --------- Run | Scr Mat Min Exi Min Mat Fac Low Low Distress Signals . | . . . . . . . . . Communications Jammed . | . . . . . . . . . Distress Signals . | . . . . . . . . . Times Spotted 36 | . 5 . . 2 8 4 15 2 Peak Tracking Total 10 | . 4 . . 2 4 3 10 2 Tactical Retreats 2 | . . . . . . . 2 . Traps | -11 -10 -10 -10 -9 -8 -7 -7 -7 ------- Run | Scr Mat Min Exi Min Mat Fac Low Low Traps Triggered 5 | . 2 . . . . 3 . . Indirectly . | . . . . . . . . . Trap Hack Attempts . | . . . . . . . . . Triggered . | . . . . . . . . . Disarmed . | . . . . . . . . . Reprogrammed . | . . . . . . . . . Reused . | . . . . . . . . . Traps Extracted . | . . . . . . . . . Installed 3 | . . . . 3 . . . . Triggered . | . . . . . . . . . Machines | -11 -10 -10 -10 -9 -8 -7 -7 -7 ---------- Run | Scr Mat Min Exi Min Mat Fac Low Low Machines Disabled 2 | . . . . 1 . . 1 . Max in Single Turn 1 | . . . . 1 . . 1 . Machines Sabotaged . | . . . . . . . . . Garrisons Compromised . | . . . . . . . . . Overloaded Fab Kills . | . . . . . . . . . Hacking | -11 -10 -10 -10 -9 -8 -7 -7 -7 --------- Run | Scr Mat Min Exi Min Mat Fac Low Low Machines Accessed 7 | . 3 . 2 . 1 1 . . Terminals 5 | . 3 . . . 1 1 . . Fabricators . | . . . . . . . . . Repair Stations . | . . . . . . . . . Recycling Units . | . . . . . . . . . Scanalyzers . | . . . . . . . . . Garrison Access . | . . . . . . . . . Total Hacks 17 | . 7 . 2 . 6 2 . . Successful 12 | . 5 . 2 . 4 1 . . Failed 5 | . 2 . . . 2 1 . . Catastrophic . | . . . . . . . . . Database Lockouts . | . . . . . . . . . Manual 16 | . 7 . 1 . 6 2 . . Terminals 15 | . 7 . . . 6 2 . . Fabricators . | . . . . . . . . . Repair Stations . | . . . . . . . . . Recycling Units . | . . . . . . . . . Scanalyzers . | . . . . . . . . . Garrison Access . | . . . . . . . . . Terminal Hacks 6 | . 2 . 2 . 2 . . . Record 1 | . . . 1 . . . . . Part Schematic 1 | . 1 . . . . . . . Level Access Points 1 | . . . . . 1 . . . Branch Access Points 1 | . 1 . . . . . . . Terminal Index 1 | . . . . . 1 . . . EX-Prototype ID Bank 1 | . . . 1 . . . . . Fabricator Hacks . | . . . . . . . . . Repair Station Hacks . | . . . . . . . . . Recycling Unit Hacks . | . . . . . . . . . Scanalyzer . | . . . . . . . . . Garrison Access Hacks . | . . . . . . . . . Unauthorized Hacks 6 | . 3 . . . 2 1 . . Terminals 6 | . 3 . . . 2 1 . . Assimilate 1 | . . . . . 1 . . . Botnet 5 | . 3 . . . 1 1 . . Fabricators . | . . . . . . . . . Repair Stations . | . . . . . . . . . Recycling Units . | . . . . . . . . . Scanalyzers . | . . . . . . . . . Garrison Access . | . . . . . . . . . Data Cores Recovered . | . . . . . . . . . Used . | . . . . . . . . . Hacking Detections 5 | . 3 . . . 1 1 . . Full Trace Events . | . . . . . . . . . Feedback Events . | . . . . . . . . . Feedback Blocked . | . . . . . . . . . Robot Schematics Acquired . | . . . . . . . . . Robots Built . | . . . . . . . . . Authchips . | . . . . . . . . . Time . | . . . . . . . . . Total Robot Build Rating . | . . . . . . . . . Part Schematics Acquired 1 | . 1 . . . . . . . Parts Built . | . . . . . . . . . Authchips . | . . . . . . . . . Time . | . . . . . . . . . Total Part Build Rating . | . . . . . . . . . Parts Repaired . | . . . . . . . . . Time . | . . . . . . . . . Parts Recycled . | . . . . . . . . . Recycled Matter . | . . . . . . . . . Retrieved Matter . | . . . . . . . . . Retrieved Components . | . . . . . . . . . Parts Scanalyzed . | . . . . . . . . . Part Schematics Acquired . | . . . . . . . . . Parts Damaged . | . . . . . . . . . Bothacking | -11 -10 -10 -10 -9 -8 -7 -7 -7 ------------ Run | Scr Mat Min Exi Min Mat Fac Low Low Used RIF Installer . | . . . . . . . . . Robots Hacked . | . . . . . . . . . Non-combat . | . . . . . . . . . Combat . | . . . . . . . . . Robot Hacks Applied . | . . . . . . . . . Relay Couplers Released . | . . . . . . . . . Fabnet Peak Effective % . | . . . . . . . . . Robots Rewired . | . . . . . . . . . Allies Hacked . | . . . . . . . . . Hacks Repelled . | . . . . . . . . . Allies | -11 -10 -10 -10 -9 -8 -7 -7 -7 -------- Run | Scr Mat Min Exi Min Mat Fac Low Low Total Allies 1 | . . . . . 1 . . . Largest Group 1 | . . . . . 1 . . . Highest-Rated Group 10 | . . . . . 10 . . . Highest-Rated Ally 10 | . . . . . 10 . . . Total Orders . | . . . . . . . . . Ally Attacks . | . . . . . . . . . Total Damage . | . . . . . . . . . Kills . | . . . . . . . . . Allies Corrupted . | . . . . . . . . . Allies Melted . | . . . . . . . . . Intel | -11 -10 -10 -10 -9 -8 -7 -7 -7 ------- Run | Scr Mat Min Exi Min Mat Fac Low Low Robot Analysis Total . | . . . . . . . . . Derelict Logs Recovered 6 | . . . . 2 . . 3 1 Drone Launches . | . . . . . . . . . Drone Recoveries . | . . . . . . . . . Exploration | -11 -10 -10 -10 -9 -8 -7 -7 -7 ------------- Run | Scr Mat Min Exi Min Mat Fac Low Low Turns Passed 2146 | . 185 33 308 120 325 662 385 128 Spaces Moved 1774 | 1 141 28 255 90 178 521 314 246 Core 390 | . . . . . . . 144 246 Treads . | . . . . . . . . . Legs 890 | 1 141 28 255 90 178 197 . . Wheels 494 | . . . . . . 324 170 . Hover . | . . . . . . . . . Flight . | . . . . . . . . . Fastest Speed 50 | 120 120 120 120 120 120 100 50 50 Average Speed 104 | 120 120 120 120 120 135 114 85 50 Slowest Speed 190 | 120 120 120 120 120 190 120 115 50 Overloaded Moves . | . . . . . . . . . Propulsion Burnouts . | . . . . . . . . . Robots Hopped . | . . . . . . . . . Cave-ins Triggered . | . . . . . . . . . Exploration Rate (%) 29 | 2 42 8 60 28 17 14 55 36 Regions Visited 8 Branch Regions 5 Pre-discovered Areas 4 | . . 1 1 1 . . 1 . Known Exits Taken 2 | . 1 . . . 1 . . . Unknown Exits Taken 6 | 1 . 1 1 1 . 1 1 . Scrap Searched 3 | . . . . . . . . 3 Spaces Dug 19 | . . . . . 19 . . . Terrain Destroyed 74 | . . . . 30 19 . 25 . Melee . | . . . . . . . . . Projectile . | . . . . . . . . . AOE 74 | . . . . 30 19 . 25 . Terrain Rammed . | . . . . . . . . . Walls Destroyed . | . . . . . . . . . Machines Disabled . | . . . . . . . . . Actions | -11 -10 -10 -10 -9 -8 -7 -7 -7 --------- Run | Scr Mat Min Exi Min Mat Fac Low Low Total 1967 | . 156 27 257 97 229 573 378 250 Wait 50 | . 2 . . . 8 22 16 2 Move 1766 | . 140 27 254 89 177 520 313 246 Hop . | . . . . . . . . . Pick Up 13 | . 5 . 1 1 5 . 1 . Fast Attach 12 | . 3 . . . 3 4 1 1 Attach 7 | . . . . . 2 . 5 . Detach 3 | . . . . . . . 3 . Swap 19 | . . . 1 . 7 1 10 . Drop 19 | . 5 . 1 1 5 2 4 1 Fire 59 | . 1 . . 3 22 8 25 . Melee . | . . . . . . . . . Ram . | . . . . . . . . . Kick . | . . . . . . . . . Crush . | . . . . . . . . . Escape Stasis 16 | . . . . . . 16 . . Rewire . | . . . . . . . . . Trap 3 | . . . . 3 . . . . Miscellaneous . | . . . . . . . . . Route ------- -11/Scrapyard -10/Materials (discovered 2 exits: *Min x2) -10/Mines -10/Exiles -9/Mines -8/Materials (discovered 3 exits: *Fac x3) -7/Factory (discovered 3 exits: [*Fac x2] / [*Low]) -7/Lower Caves -7/Lower Caves History --------- Turn | Location | Event 1 | -11/Scrapyard | Discovered new exit (range 0) 1 | -11/Scrapyard | Entered Materials 168 | -10/Materials | Identified exit to Mines 186 | -10/Materials | Entered Mines 195 | -10/Mines | Learned location of Storage (-8) 214 | -10/Mines | Deemed a non-threat by the Exiles lab entrance 214 | -10/Mines | Discovered new exit (range 5) 219 | -10/Mines | Entered Exiles 248 | -10/Exiles | Met 8R-AWN 269 | -10/Exiles | Met EX-HEX 305 | -10/Exiles | Met EX-BIN 317 | -10/Exiles | Build established: Mutant 374 | -10/Exiles | Aligned with FarCom system 375 | -10/Exiles | Given EX-Vault access code 403 | -10/Exiles | Opened EX-Vault 412 | -10/Exiles | Found Latent Energy Streamer 438 | -10/Exiles | Warned to stay clear of 0b10 Research branches 472 | -10/Exiles | Met EX-DEC 477 | -10/Exiles | Learned location of Zion (-6) 514 | -10/Exiles | Discovered new exit (range 11) 527 | -10/Exiles | Left Exiles lab with Latent Energy Streamer 527 | -10/Exiles | Entered Mines 572 | -9/Mines | Found a hidden stash of uninstalled traps 601 | -9/Mines | A weapon hastily lodged in a ceiling crevice suddenly fell to the ground 628 | -9/Mines | Learned Materials stockpile data 638 | -9/Mines | Discovered new exit (range 8) 647 | -9/Mines | Entered Materials 647 | -8/Materials | Evolved 4 slots: Power x1, Propulsion x1, Utility x2 786 | -8/Materials | Identified exit to Factory 921 | -8/Materials | Lost 3 parts (1p1n1u) 972 | -8/Materials | Entered Factory 972 | -7/Factory | Evolved 2 slots: Propulsion x1, Utility x1 1196 | -7/Factory | Build established: Scavenger-Mutant 1354 | -7/Factory | Discovered new exit (range 3) 1355 | -7/Factory | Discovered new exit (range 12) 1356 | -7/Factory | Discovered new exit (range 12) 1634 | -7/Factory | Entered Lower Caves 1664 | -7/Lower Caves | Attracted the attention of an 0b10 checkpoint 1774 | -7/Lower Caves | Learned location of 1 exit from Factory 1887 | -7/Lower Caves | Attracted the attention of an 0b10 outpost 1913 | -7/Lower Caves | System corruption reached 10% 1933 | -7/Lower Caves | Core integrity fell below 50% 1965 | -7/Lower Caves | Destroyed 10 combat bots 1975 | -7/Lower Caves | Lost 12 parts (3p2n4u3w) 1983 | -7/Lower Caves | Learned Factory terminal intel 2004 | -7/Lower Caves | Encountered a Warlord checkpoint 2015 | -7/Lower Caves | Discovered new exit (range 8) 2019 | -7/Lower Caves | Entered another Lower Caves area 2025 | -7/Lower Caves | Build established: Mutant 2073 | -7/Lower Caves | Spotted B-75 Beast 2098 | -7/Lower Caves | Learned 8 Factory zone layouts 2100 | -7/Lower Caves | Encountered a Warlord checkpoint 2145 | -7/Lower Caves | Core integrity fell below 20% 2147 | -7/Lower Caves | Self-destructed Last Messages --------------- Data stored: Factory zone layouts (x8). 02100_ 0J-CB8(M): "This area isn't safe." 02110_ Searching scrap... 02110_ Found Force Booster. 02110_ Found Datajack. 02110_ Found 28 Matter. 02111_ Acquired 28 matter. 02112_ System corrupted: Matter fused (-9). 02126_ Searching scrap... 02126_ Found Shotgun. 02126_ Found Hrd. Heavy Armor Plating. 02126_ Found Imp. Light Cannon. 02126_ Found Unknown Device. 02126_ Found 17 Matter. 02127_ Acquired 17 matter. 02127_ Acquired Unknown Device. 02127_ Identified Coolant Injector. 02128_ Dropped Coolant Injector. 02131_ S&HQCWAKGM%3K&UOYYPVH BVEQMQ1&SACEMDCK 02141_ Acquired 5 matter. Map ----- +----------------------------------------------------+ | #????# ##?? % ???? #?????????# #? | | ##???# ### ##??? ???? ??????????# #? | | ###?# ##?## ##????# #??? #??????????# #? | | #### #???# #?????# ##?? #??###?????# #? | | # #?## #???# ####### #?? ??# ?????? #? | | # #??# #???# ##? #??# #?????? ? | | # #??# #???# ## ### #??????? ? | | " %#### #???########## # #????????###? | | #??????????## #???????????? | | "########????????### ####???????????? | | ##?????????#####??# ##?????????????? | | ##?????###### #### #?????????????? | | ???????# ! ###?????????????? | | ???????# / #???????????????? | | #???????# ###### #???????????????? | | ???????????????## ##???????????????? | | ????????????????## ##????????????????? | | ?????????????????## ######## ##?????????????????? | | ????????? #####??########## #????### ##????????? | | ?????????? ### ] !## #### p ##???????? | | ?????????? # ##[! ??????? | | ????????????# # # # #????????????? | | ????????????# # # #????????????? | | ???? ?????## # ## #???????????? | | ???? ???# # ##? #??????????? | | ??? ## ?# # @# ##??? #?????????? | | ???? ## # # ##???? #?????????? | | ????? ### ####????# #?????????? | | ????????????# ### #????? #?????????? | | ???????????## #? ##????? #?????????? | | ???????????# ### ##????? #?????????? | | ???? ## ##????????????????? | | ???? #????????????????? | | ??? ## #???????????????? | | ???? ???## ### #???????????????? | | ??????????#########?##############???????????????? | | ?????????????????????????????????????????????????? | | ?????????????????????????????????????????????????? | | ?????????????????????????????????????????????????? | | ?????????????????????????????????????????????????? | | ?????????????????????????????????????????????????? | | ?????????????????????????????????????????????????? | | ?????????????????????????????????????????????????? | | ?????????????????????????????????????????????????? | | ?????????????????????????????????????????????????? | | ?????????????????????????????????????????????????? | | ?????????????????????????????????????????????????? | | ?????????????????????????????????????????????????? | | ?????????????????????????????????????????????????? | | ?????????????????????????????????????????????????? | +----------------------------------------------------+ Best States ------------- Heat Dissipation 34 Energy Generation 23 Energy Capacity 400 Matter Stores 300 Matter Capacity 300 Sight Range 16 Robot Scan Range 14 Terrain Scan Density 10 Armor Coverage 150 Evasion (%) 55 Offensive Hacking 10 Item Schematics ----------------- Sml. Storage Unit | -10/Materials | Hacked Robot Schematics ------------------ None Fabricated ------------ Nothing Alien Tech Used ----------------- None Achievements -------------- None Challenges ------------ None Game ------ Seed VortexMagneticClaymores Manual? 0 Play Time 00:22:32 Cumulative 33.4 hours Start 2022.03.28 @ 17:54:10 End 2022.03.28 @ 18:17:12 Sessions 3 Manual Loads 0 Difficulty Rogue Special Mode None Game No. 41 Rogue 41 Adventurer 0 Explorer 0 Win Type - Total 2 Types 2/0/0/0/0/0/0/0/0 Lore% 32 Gallery% 36 Achievement% 35 Wizard Run 0 Options --------- ASCII 0 Keyboard 0 Movement Mouse Keybinds 0 Fullscreen 1 Font 18/SmallcapsGlow Map View 76x50 Tactical HUD 1 Map Filters NONE Filters NONE Steam 1 RUN: 2eb3f694-7c5e-4b23-a480-9be8cb4ccf1f